bitfinex-derivatives/quotes_SOLF0:USTF0_20250830
["timestamp","ask_amount","ask_price","bid_price","bid_amount"]
[1756545347864,0.03414869,202.51,202.47,2.88271849]
[1756545348164,0.03414869,202.51,202.48,7.77]
[1756545348355,0.03414869,202.51,202.48,4.4445]
[1756545348557,0.03414869,202.51,202.49,7.77]
[1756545351658,0.03414869,202.51,202.5,12.2141]
[1756545351857,0.03414869,202.51,202.5,15.09681849]
[1756545352064,0.03414869,202.51,202.5,15.59681849]
[1756545352463,7.13,202.6,202.54,7.77]
[1756545352966,10.01271849,202.6,202.49,7.77]
[1756545353758,10.01271849,202.6,202.52,0.03140181]
[1756545354264,7.16,202.56,202.52,0.03140181]
[1756545354664,2.88271849,202.57,202.52,0.03140181]
[1756545355165,7.16,202.56,202.52,0.03140181]
[1756545355360,2.88271849,202.56,202.52,0.03140181]
[1756545355565,7.16,202.55,202.52,0.03140181]
[1756545355969,2.88271849,202.56,202.52,7.80140181]
[1756545356566,10.04271849,202.59,202.53,7.77]
[1756545357262,10.04271849,202.59,202.52,0.03140181]
[1756545357466,7.16,202.55,202.52,0.03140181]
[1756545360370,2.88271849,202.56,202.52,0.03140181]
[1756545360567,7.16,202.55,202.52,0.03140181]
[1756545361877,2.88271849,202.56,202.52,0.03140181]
[1756545362556,7.16,202.55,202.52,0.03140181]
[1756545362975,456.88,202.64,202.52,0.03140181]
[1756545363174,7.16,202.54,202.52,0.03140181]
[1756545363373,2.88271849,202.55,202.52,0.03140181]
[1756545363875,7.16,202.54,202.52,0.03140181]
[1756545364077,2.88271849,202.55,202.52,0.03140181]
[1756545364474,7.16,202.54,202.52,0.03140181]
[1756545364674,2.88271849,202.55,202.52,0.03140181]
[1756545364877,7.16,202.54,202.52,0.03140181]
[1756545365273,2.88271849,202.55,202.52,0.03140181]
[1756545365478,7.16,202.54,202.52,0.03140181]
[1756545365973,2.88271849,202.55,202.52,0.03140181]
[1756545366576,7.16,202.54,202.52,0.03140181]
[1756545366776,7.16,202.57,202.52,0.03140181]
[1756545369981,7.16,202.53,202.52,0.03140181]
[1756545375690,7.16,202.57,202.52,0.03140181]
[1756545376587,7.16,202.58,202.52,0.03140181]
[1756545376789,10.04271849,202.58,202.52,0.03140181]
[1756545377989,7.16,202.58,202.52,0.03140181]
[1756545378190,7.16,202.58,202.52,7.43140181]
[1756545379893,134.22271849,202.63,202.52,7.43140181]
[1756545382091,10.06271849,202.63,202.52,7.43140181]
[1756545382292,134.20271849,202.63,202.52,7.43140181]
[1756545384591,2.88271849,202.57,202.52,0.03140181]
[1756545384791,7.18,202.56,202.52,0.03140181]
[1756545384994,2.88271849,202.57,202.52,0.03140181]
[1756545385391,7.18,202.56,202.52,0.03140181]
[1756545385590,112.52271849,202.57,202.52,0.03140181]
[1756545386294,7.18,202.56,202.52,0.03140181]
[1756545387896,2.88271849,202.56,202.52,0.03140181]
[1756545388692,7.18,202.55,202.52,0.03140181]
[1756545388891,2.88271849,202.56,202.52,0.03140181]
[1756545388892,5.43791049,202.63,202.52,0.03140181]
[1756545389097,10.06271849,202.58,202.52,0.03140181]
[1756545389292,7.18,202.58,202.52,0.03140181]
[1756545389499,7.18,202.63,202.55,7.4]
[1756545390794,7.18,202.67,202.57,2.88271849]
[1756545391097,7.18,202.67,202.58,7.4]
[1756545391493,7.18,202.67,202.6,0.03779645]
[1756545391796,7.18,202.67,202.6,2.92051494]
[1756545394603,7.18,202.67,202.61,7.4]
[1756545399004,7.18,202.67,202.6,0.03779645]
[1756545399005,10.06271849,202.67,202.6,0.03779645]
[1756545400708,7.18,202.67,202.6,0.03779645]
[1756545401311,131.26,202.67,202.6,0.03779645]
[1756545403706,331.84,202.69,202.61,7.58]
[1756545403912,10.05271849,202.71,202.62,2.88271849]
[1756545404710,10.05271849,202.71,202.64,0.03626026]
[1756545408008,7.17,202.71,202.64,0.03626026]
[1756545411008,7.17,202.71,202.65,7.58]
[1756545411412,7.17,202.74,202.65,7.58]
[1756545412113,7.17,202.74,202.64,0.03626026]
[1756545413420,7.17,202.72,202.64,7.61626026]
[1756545422916,7.17,202.72,202.64,12.05726026]
[1756545423122,7.17,202.72,202.65,7.58]
[1756545423721,10.05271849,202.76,202.66,2.88271849]
[1756545423921,10.05271849,202.76,202.67,7.58]
[1756545424517,10.05271849,202.76,202.69,0.03761287]
[1756545425622,10.05271849,202.76,202.69,7.61761287]
[1756545425818,7.17,202.76,202.69,7.61761287]
[1756545426020,7.17,202.79,202.7,7.58]
[1756545426219,7.17,202.79,202.73,7.58]
[1756545426417,5.43791049,202.96,202.78,10.46271849]
[1756545426624,339.77737032,202.98,202.84,7.58]
[1756545426625,10.05271849,202.94,202.84,7.58]
[1756545426823,10.05271849,202.94,202.86,2.88271849]
[1756545427019,7.17,202.94,202.87,7.46]
[1756545427423,411.28,202.98,202.89,2.88271849]
[1756545427816,411.28,202.98,202.88,0.03681545]
[1756545429023,7.14,202.95,202.88,0.03681545]
[1756545429324,2.88271849,202.94,202.88,0.03681545]
[1756545429519,7.14,202.93,202.88,0.03681545]
[1756545430124,2.88271849,202.94,202.88,0.03681545]
[1756545430319,7.14,202.93,202.88,0.03681545]
[1756545430522,123.94,202.92,202.88,0.03681545]
[1756545430725,7.14,202.91,202.88,0.03681545]
[1756545430926,123.94,202.92,202.88,0.03681545]
[1756545431127,7.14,202.91,202.88,0.03681545]
[1756545431328,123.94,202.92,202.88,0.03681545]
[1756545431725,2.88271849,202.9,202.88,0.03681545]
[1756545431928,7.14,202.89,202.88,0.03681545]
[1756545433632,7.64,202.89,202.88,0.03681545]
[1756545435027,7.14,202.89,202.88,0.03681545]
[1756545436630,131.04,202.89,202.88,0.03681545]
[1756545438228,131.54,202.89,202.88,0.03681545]
[1756545438434,7.11,202.88,202.79,19.07725]
[1756545438636,123.88,202.87,202.79,19.07725]
[1756545439628,123.88,202.87,202.8,7.46]
[1756545439835,0.03214628,202.85,202.8,7.46]
[1756545440336,0.03214628,202.85,202.79,14.49996849]
[1756545440629,0.03214628,202.85,202.8,7.46]
[1756545441329,0.03214628,202.85,202.79,14.49996849]
[1756545442127,0.03214628,202.85,202.8,7.46]
[1756545442333,0.03214628,202.85,202.79,14.49996849]
[1756545443332,0.03214628,202.85,202.8,7.46]
[1756545443534,0.03214628,202.85,202.79,14.49996849]
[1756545443835,7.14214628,202.85,202.79,14.49996849]
[1756545444035,7.14214628,202.85,202.79,19.07725]
[1756545444931,0.03214628,202.85,202.79,19.07725]
[1756545445537,0.03214628,202.85,202.8,7.46]
[1756545446134,0.03214628,202.85,202.79,11.61725]
[1756545446837,0.03214628,202.85,202.8,7.46]
[1756545447030,0.03214628,202.85,202.79,11.61725]
[1756545447335,0.03214628,202.85,202.8,7.46]
[1756545447535,0.03214628,202.85,202.79,11.61725]
[1756545447837,0.03214628,202.85,202.79,19.07725]
[1756545459640,0.03214628,202.85,202.79,11.61725]
[1756545459834,7.15214628,202.85,202.79,11.61725]
[1756545460241,7.15214628,202.85,202.81,7.29]
[1756545461638,0.03214628,202.85,202.79,11.61725]
[1756545461841,7.12,202.84,202.79,11.61725]
[1756545462041,7.15214628,202.85,202.79,11.61725]
[1756545464440,0.03214628,202.85,202.79,11.61725]
[1756545464643,0.03214628,202.85,202.8,7.29]
[1756545465442,0.03214628,202.85,202.79,11.61725]
[1756545465743,0.03214628,202.85,202.8,7.29]
[1756545467349,0.03214628,202.85,202.8,10.17271849]
[1756545467549,0.03214628,202.85,202.84,7.29]
[1756545474753,7.12,202.96,202.84,7.79]
[1756545475049,10.00271849,202.96,202.86,2.88271849]
[1756545475254,10.00271849,202.96,202.87,7.29]
[1756545476054,10.00271849,202.96,202.89,0.033077]
[1756545480861,7.12,202.96,202.89,0.033077]
[1756545481365,7.12,202.96,202.89,7.323077]
[1756545481662,7.12,202.96,202.89,10.20579549]
[1756545483165,7.12,202.96,202.9,7.29]
[1756545484765,331.62,202.98,202.9,7.29]
[1756545485565,0.03429191,202.96,202.9,7.29]
[1756545488772,0.03429191,202.96,202.92,2.88271849]
[1756545488969,0.03429191,202.96,202.93,7.81]
[1756545489574,0.03429191,202.96,202.92,2.88271849]
[1756545490271,0.03429191,202.96,202.92,7.81]
[1756545490474,7.12,202.95,202.92,7.81]
[1756545492577,7.12,202.95,202.89,0.033077]
[1756545495475,29.88,202.95,202.89,0.033077]
[1756545498183,7.12,202.95,202.89,0.033077]
[1756545498385,51.48,202.95,202.89,0.033077]
[1756545498885,7.12,202.95,202.89,0.033077]
[1756545500284,7.14,202.93,202.89,0.033077]
[1756545500785,2.88271849,202.91,202.89,0.033077]
[1756545500981,7.14,202.9,202.89,0.033077]
[1756545505689,130.72,202.9,202.89,0.033077]
[1756545506193,7.11,202.89,202.77,7.81]
[1756545506396,9.99271849,202.85,202.77,7.81]
[1756545507493,0.03515577,202.84,202.74,2.88271849]
[1756545507686,7.14515577,202.84,202.8,7.81]
[1756545508494,0.03515577,202.84,202.8,7.81]
[1756545509795,0.03515577,202.84,202.83,2.88271849]
[1756545509995,0.03515577,202.84,202.83,10.69271849]
[1756545510692,7.14,202.96,202.84,7.81]
[1756545510892,130.72,202.96,202.87,7.81]
[1756545511995,130.72,202.96,202.89,0.03433644]
[1756545514697,7.14,202.9,202.89,0.03433644]
[1756545514893,130.7,202.9,202.89,0.03433644]
[1756545517295,123.56,202.9,202.89,0.03433644]
[1756545517491,123.54,202.91,202.89,0.03433644]
[1756545518002,123.54,202.92,202.89,0.03433644]
[1756545518203,123.54,202.92,202.89,7.82433644]
[1756545518896,331.24,202.97,202.9,7.79]
[1756545519097,7.15,203.01,202.92,2.88271849]
[1756545519295,2.88271849,202.97,202.89,0.03433644]
[1756545519497,7.15,202.96,202.88,7.79]
[1756545519701,123.54,202.95,202.88,7.79]
[1756545519896,123.54,202.95,202.91,0.03660232]
[1756545520096,7.15,202.94,202.91,0.03660232]
[1756545520801,2.88271849,202.97,202.91,0.03660232]
[1756545521101,94.53,202.96,202.91,7.82660232]
[1756545521995,7.15,202.95,202.91,7.82660232]
[1756545523296,87.38,202.96,202.91,0.03660232]
[1756545524095,7.15,202.93,202.91,0.03660232]
[1756545524801,2.88271849,202.94,202.91,0.03660232]
[1756545525801,10.03271849,202.94,202.91,0.03660232]
[1756545526102,31.08,202.96,202.91,0.03660232]
[1756545526292,38.23,202.96,202.91,7.82660232]
[1756545526495,7.15,202.95,202.91,7.82660232]
[1756545527999,7.15,202.95,202.91,0.03660232]
[1756545528195,7.15,202.95,202.92,7.79]
[1756545528400,88.00271849,202.97,202.92,7.79]
[1756545528596,7.15,202.97,202.91,7.82660232]
[1756545528797,123.5,202.98,202.91,7.82660232]
[1756545535208,10.03271849,203.0,202.91,7.82660232]
[1756545536312,7.15,203.0,202.91,7.82660232]
[1756545536811,7.15,203.0,202.93,2.88271849]
[1756545538116,7.15,203.0,202.93,10.67271849]
[1756545538311,0.85754417,203.06,202.93,2.88271849]
[1756545538516,7.15,203.03,202.91,7.82660232]
[1756545538717,2.88271849,203.0,202.91,10.67271849]
[1756545539013,7.15,202.99,202.95,0.03413084]
[1756545539806,2.88271849,203.0,202.95,0.03413084]
[1756545540006,7.15,202.99,202.95,0.03413084]
[1756545540516,2.88271849,203.0,202.95,0.03413084]
[1756545541011,7.15,202.99,202.95,0.03413084]
[1756545541409,2.88271849,203.0,202.95,0.03413084]
[1756545541606,2.88271849,202.97,202.95,0.03413084]
[1756545541816,7.15,202.96,202.95,0.03413084]
[1756545543119,7.15,202.99,202.95,0.03413084]
[1756545543320,2.88271849,203.0,202.95,0.03413084]
[1756545544119,7.15,202.99,202.95,0.03413084]
[1756545544521,2.88271849,203.0,202.95,0.03413084]
[1756545545019,7.15,202.99,202.95,0.03413084]
[1756545545215,2.88271849,203.0,202.95,0.03413084]
[1756545545620,7.15,203.01,202.95,0.03413084]
[1756545545919,10.03271849,203.01,202.95,0.03413084]
[1756545546520,7.15,203.07,202.99,7.79]
[1756545546821,7.15,203.07,202.96,2.88271849]
[1756545547221,7.15,203.07,202.99,0.03611766]
[1756545548518,7.15,203.07,202.99,10.58883615]
[1756545551720,2.88271849,203.05,202.99,0.03611766]
[1756545551925,7.14,203.04,202.99,0.03611766]
[1756545552126,7.14,203.0,202.99,0.03611766]
[1756545553625,130.82,203.0,202.99,0.03611766]
[1756545558224,133.70271849,203.0,202.99,0.03611766]
[1756545560629,137.08543698,203.0,202.87,7.67]
[1756545560830,2.88271849,202.93,202.87,7.67]
[1756545561025,123.82,202.92,202.84,7.67]
[1756545561328,123.8,202.91,202.84,7.67]
[1756545561930,0.0330751,202.9,202.84,7.67]
[1756545566131,2.91579359,202.9,202.84,7.67]
[1756545569133,2.91579359,202.9,202.79,14.49996849]
[1756545569134,7.11,202.89,202.8,7.67]
[1756545578536,7.11,202.86,202.8,7.67]
[1756545579233,0.03726974,202.85,202.8,7.67]
[1756545579535,7.11,202.84,202.8,7.67]
[1756545581037,7.11,202.83,202.79,11.61725]
[1756545582034,2.88271849,202.84,202.79,11.61725]
[1756545582234,7.11,202.83,202.79,11.61725]
[1756545582837,2.88271849,202.84,202.79,11.61725]
[1756545583030,7.11,202.83,202.79,11.61725]
[1756545583228,7.11,202.83,202.79,19.59725]
[1756545583431,7.11,202.83,202.79,11.61725]
[1756545583829,2.88271849,202.84,202.79,11.61725]
[1756545584235,7.11,202.83,202.79,11.61725]
[1756545584436,2.88271849,202.84,202.79,11.61725]
[1756545584734,7.11,202.83,202.79,11.61725]
[1756545584932,2.88271849,202.84,202.79,11.61725]
[1756545585131,7.11,202.83,202.79,11.61725]
[1756545585642,91.46,202.84,202.79,19.59725]
[1756545585939,7.11,202.83,202.79,19.59725]
[1756545586839,126.36271849,202.84,202.79,19.59725]
[1756545587041,7.11,202.83,202.79,19.59725]
[1756545587341,126.38271849,202.84,202.79,19.59725]
[1756545587640,7.11,202.83,202.79,19.59725]
[1756545587941,126.38271849,202.84,202.79,19.59725]
[1756545588237,7.11,202.83,202.79,19.59725]
[1756545588640,126.38271849,202.84,202.79,19.59725]
[1756545589141,7.11,202.83,202.79,19.59725]
[1756545589344,7.11,202.8,202.79,11.61725]
[1756545593641,0.03726974,202.85,202.79,11.61725]
[1756545593842,123.5,202.8,202.79,11.61725]
[1756545595649,2.88271849,202.81,202.79,11.61725]
[1756545595942,123.5,202.8,202.79,11.61725]
[1756545596743,130.61,202.8,202.79,11.61725]
[1756545597735,0.03726974,202.85,202.79,11.61725]
[1756545597942,76.85726974,202.85,202.79,11.61725]
[1756545598139,0.03726974,202.85,202.79,11.61725]
[1756545598447,0.03726974,202.85,202.8,7.98]
[1756545599443,0.03726974,202.85,202.79,11.61725]
[1756545600236,10.02998823,202.85,202.79,11.61725]
[1756545601044,10.02998823,202.85,202.81,7.98]
[1756545601244,7.14726974,202.85,202.8,7.98]
[1756545601439,7.14726974,202.85,202.79,11.61725]
[1756545601742,0.03726974,202.85,202.8,7.98]
[1756545603749,2.88271849,202.91,202.82,7.98]
[1756545604047,331.3,202.92,202.85,7.98]
[1756545604847,334.18271849,202.92,202.85,7.98]
[1756545605042,334.18271849,202.92,202.86,0.03578101]
[1756545605643,7.15,202.88,202.86,0.03578101]
[1756545605848,130.63,202.87,202.86,0.03578101]
[1756545609952,7.15,202.86,202.79,11.61725]
[1756545610149,10.03271849,202.83,202.79,19.50725]
[1756545610447,2.88271849,202.83,202.8,7.89]
[1756545610641,2.88271849,202.86,202.8,7.89]
[1756545610849,39.68,202.85,202.79,11.61725]
[1756545611149,0.03398902,202.85,202.8,7.89]
[1756545612152,0.03398902,202.85,202.8,8.39]
[1756545612353,0.03398902,202.85,202.83,7.89]
[1756545613252,0.03398902,202.85,202.82,2.88271849]
[1756545613848,0.03398902,202.85,202.83,7.89]
[1756545614352,0.03398902,202.85,202.82,2.88271849]
[1756545614551,0.03398902,202.85,202.83,7.89]
[1756545616654,331.3,202.92,202.85,7.89]
[1756545617755,331.3,202.92,202.86,0.0377168]
[1756545618452,133.53271849,202.93,202.86,0.0377168]
[1756545618752,7.19,202.89,202.86,0.0377168]
[1756545618947,130.65,202.88,202.86,0.0377168]
[1756545622059,123.46,202.87,202.86,0.0377168]
[1756545623859,130.65,202.87,202.86,0.0377168]
[1756545624054,133.53271849,202.87,202.86,0.0377168]
[1756545625164,7.19,202.86,202.79,11.61725]
[1756545626267,0.03487883,202.85,202.79,11.61725]
[1756545626671,2.88271849,202.83,202.79,11.61725]
[1756545626864,132.97271849,202.82,202.79,11.61725]
[1756545627567,7.19,202.81,202.79,11.61725]
[1756545630770,123.46,202.8,202.79,11.61725]
[1756545630971,130.65,202.8,202.79,11.61725]
[1756545632277,133.53271849,202.8,202.79,11.61725]
[1756545636380,133.53271849,202.8,202.72,7.89]
[1756545636676,10.07271849,202.77,202.68,7.89]
[1756545636876,123.48,202.76,202.68,7.89]
[1756545637178,0.03337293,202.75,202.68,7.89]
[1756545639077,10.08271849,202.74,202.68,7.89]
[1756545639379,10.08271849,202.71,202.64,7.95]
[1756545639684,2.88271849,202.68,202.64,7.95]
[1756545639884,93.1,202.67,202.64,7.95]
[1756545642378,93.1,202.67,202.57,7.95]
[1756545643179,0.03583353,202.64,202.57,7.95]
[1756545645182,0.03583353,202.64,202.6,7.95]
[1756545645582,20.12,202.68,202.6,7.95]
[1756545646085,0.03572683,202.64,202.6,7.95]
[1756545646686,0.03572683,202.64,202.59,2.88271849]
[1756545647779,0.03572683,202.64,202.6,7.95]
[1756545648286,0.03572683,202.64,202.59,2.88271849]
[1756545649083,0.03572683,202.64,202.56,7.95]
[1756545649388,0.03572683,202.64,202.55,4.4428]
[1756545649389,0.03572683,202.64,202.58,7.95]
[1756545649588,10.08271849,202.67,202.58,7.95]
[1756545649788,0.03642079,202.62,202.56,7.95]
[1756545650880,0.03642079,202.62,202.58,7.95]
[1756545651085,0.03642079,202.62,202.61,7.95]
[1756545651487,0.03642079,202.62,202.61,8.45]
[1756545651887,7.2,202.71,202.61,8.45]
[1756545652080,7.2,202.71,202.61,7.95]
[1756545652685,7.2,202.71,202.62,4.4414]
[1756545652890,7.2,202.71,202.63,7.95]
[1756545653089,7.2,202.71,202.64,0.03135716]
[1756545656892,2.88271849,202.7,202.64,0.03135716]
[1756545657391,7.23,202.69,202.64,0.03135716]
[1756545657987,10.11271849,202.7,202.64,0.03135716]
[1756545658185,7.23,202.7,202.64,0.03135716]
[1756545661385,2.88271849,202.68,202.64,0.03135716]
[1756545661593,7.23,202.67,202.64,0.03135716]
[1756545661791,2.88271849,202.68,202.64,0.03135716]
[1756545661986,7.23,202.67,202.64,0.03135716]
[1756545662183,2.88271849,202.68,202.64,0.03135716]
[1756545662695,7.23,202.67,202.64,0.03135716]
[1756545663999,2.88271849,202.68,202.64,0.03135716]
[1756545664400,7.23,202.67,202.64,0.03135716]
[1756545664901,2.88271849,202.68,202.64,0.03135716]
[1756545665193,7.23,202.67,202.64,0.03135716]
[1756545665398,2.88271849,202.68,202.64,0.03135716]
[1756545665997,10.11271849,202.65,202.64,0.03135716]
[1756545666198,7.23,202.61,202.56,7.95]
[1756545666392,7.23,202.61,202.5,7.95]
[1756545667500,7.27171491,202.58,202.5,7.95]
[1756545669501,7.27171491,202.58,202.42,331.44]
[1756545669502,2.88271849,202.56,202.46,7.48]
[1756545669708,10.12271849,202.56,202.46,7.48]
[1756545670408,0.03251463,202.53,202.46,7.48]
[1756545670903,0.03251463,202.53,202.49,7.48]
[1756545671102,0.03251463,202.53,202.48,2.88271849]
[1756545671610,0.03251463,202.53,202.49,7.48]
[1756545672006,0.03251463,202.53,202.51,2.88271849]
[1756545672208,0.03251463,202.53,202.52,7.48]
[1756545679217,7.24,202.62,202.55,7.48]
[1756545680510,7.24,202.62,202.56,0.03478665]
[1756545686119,7.25,202.67,202.57,10.36271849]
[1756545686818,7.25,202.67,202.6,0.03604828]
[1756545690026,7.25,202.67,202.6,10.39876677]
[1756545690027,2.37353468,202.66,202.6,10.39876677]
[1756545690227,2.37353468,202.65,202.61,7.48]
[1756545690428,2.37353468,202.64,202.61,7.48]
[1756545690728,2.37353468,202.63,202.61,7.48]
[1756545690928,2.37353468,202.62,202.61,7.48]
[1756545694629,7.25,202.67,202.61,7.48]
[1756545694926,2.37360787,202.66,202.61,7.48]
[1756545695230,2.37360787,202.65,202.61,7.48]
[1756545695431,2.37360787,202.64,202.61,7.48]
[1756545695620,2.37360787,202.63,202.61,7.48]
[1756545695824,7.25,202.67,202.61,7.48]
[1756545696030,2.37311208,202.66,202.61,7.48]
[1756545696230,2.37311208,202.65,202.61,7.48]
[1756545696530,2.37311208,202.64,202.61,7.48]
[1756545696728,2.37311208,202.63,202.6,2.91876677]
[1756545697030,7.25,202.67,202.61,7.73]
[1756545697229,2.37312532,202.66,202.61,7.73]
[1756545697532,2.37341745,202.65,202.61,7.73]
[1756545697729,2.37341745,202.64,202.6,2.91876677]
[1756545697930,2.37341745,202.63,202.6,2.91876677]
[1756545698127,7.27,202.68,202.61,7.73]
[1756545698326,2.37340785,202.67,202.61,7.73]
[1756545698526,2.37340785,202.66,202.6,2.91876677]
[1756545698726,2.37340785,202.65,202.6,2.91876677]
[1756545698931,2.37340785,202.64,202.6,2.91876677]
[1756545699233,2.37340785,202.63,202.6,2.91876677]
[1756545699428,2.37340785,202.62,202.61,7.73]
[1756545700131,7.27,202.68,202.61,7.73]
[1756545700331,2.37386841,202.67,202.61,7.73]
[1756545700533,2.37386841,202.66,202.6,2.91876677]
[1756545700733,2.37386841,202.65,202.6,2.91876677]
[1756545700933,2.37386841,202.64,202.6,2.91876677]
[1756545701132,2.37386841,202.63,202.6,2.91876677]
[1756545701333,2.37386841,202.62,202.61,7.73]
[1756545703426,7.27,202.68,202.61,7.73]
[1756545703622,2.37448615,202.67,202.64,7.73]
[1756545703822,2.37448615,202.66,202.64,7.73]
[1756545704128,2.37448615,202.65,202.64,7.73]
[1756545704628,7.27,202.76,202.66,4.4405]
[1756545704823,7.27,202.76,202.7,7.73]
[1756545705024,7.27,202.76,202.69,2.88271849]
[1756545705532,7.27,202.78,202.71,0.03252764]
[1756545706527,7.27,202.78,202.72,2.88271849]
[1756545706732,7.27,202.78,202.72,10.61271849]
[1756545709436,7.27,202.83,202.72,10.61271849]
[1756545710229,7.27,202.83,202.75,0.03432149]
[1756545714735,7.27,202.83,202.76,7.73]
[1756545716038,7.27,202.81,202.75,0.03432149]
[1756545717030,34.72,202.86,202.75,0.03432149]
[1756545717031,7.27,202.78,202.75,0.03432149]
[1756545717541,2.88271849,202.79,202.75,0.03432149]
[1756545718142,7.27,202.78,202.75,0.03432149]
[1756545718337,2.88271849,202.79,202.75,0.03432149]
[1756545718641,7.27,202.78,202.75,0.03432149]
[1756545718840,2.88271849,202.79,202.75,0.03432149]
[1756545719941,7.27,202.78,202.75,0.03432149]
[1756545720740,10.15271849,202.76,202.64,7.73]
[1756545720941,2.88271849,202.73,202.64,7.73]
[1756545721141,7.24,202.72,202.64,7.73]
[1756545721937,0.0372112,202.7,202.64,7.73]
[1756545722740,0.0372112,202.7,202.68,7.73]
[1756545722943,0.0372112,202.7,202.67,2.88271849]
[1756545723243,7.24,202.76,202.68,7.73]
[1756545723443,0.03724485,202.71,202.68,7.73]
[1756545723637,0.03724485,202.71,202.67,2.88271849]
[1756545723844,0.03724485,202.71,202.68,7.73]
[1756545724137,0.03724485,202.71,202.67,2.88271849]
[1756545724843,0.03724485,202.71,202.68,7.73]
[1756545725042,0.03724485,202.71,202.67,2.88271849]
[1756545725242,0.03724485,202.71,202.68,7.73]
[1756545725433,0.03724485,202.71,202.67,2.88271849]
[1756545725834,0.03724485,202.71,202.67,7.32301849]
[1756545726142,0.03724485,202.71,202.68,7.73]
[1756545726542,0.03724485,202.71,202.67,7.32301849]
[1756545726845,0.03724485,202.71,202.68,7.73]
[1756545727044,0.03724485,202.71,202.67,7.32301849]
[1756545727544,0.03724485,202.71,202.67,2.88271849]
[1756545727743,0.03724485,202.71,202.68,7.3]
[1756545728041,7.25724485,202.71,202.67,2.88271849]
[1756545728243,7.25724485,202.71,202.68,7.3]
[1756545731446,7.25724485,202.71,202.67,7.3]
[1756545731948,0.03724485,202.71,202.61,7.3]
[1756545732245,0.03724485,202.71,202.62,2.88271849]
[1756545732246,7.22,202.7,202.62,2.88271849]
[1756545734347,7.22,202.7,202.63,7.3]
[1756545739651,7.22,202.7,202.62,2.88271849]
[1756545740854,7.22,202.7,202.6,7.3]
[1756545741247,7.25,202.67,202.6,7.3]
[1756545742048,0.03422084,202.66,202.6,7.3]
[1756545744550,0.03422084,202.66,202.62,2.88271849]
[1756545744757,0.03422084,202.66,202.63,7.3]
[1756545745151,0.03422084,202.66,202.62,2.88271849]
[1756545745348,0.03422084,202.66,202.63,7.3]
[1756545745953,0.03422084,202.66,202.62,2.88271849]
[1756545747257,0.03422084,202.66,202.63,7.3]
[1756545747847,0.03422084,202.66,202.62,2.88271849]
[1756545748157,0.03422084,202.66,202.63,7.3]
[1756545748357,0.03422084,202.66,202.62,2.88271849]
[1756545748754,0.03422084,202.66,202.63,7.3]
[1756545749459,0.03422084,202.66,202.62,2.88271849]
[1756545749653,0.03422084,202.66,202.63,7.3]
[1756545749855,0.03422084,202.66,202.59,10.18271849]
[1756545750448,0.03422084,202.66,202.59,7.3]
[1756545750655,7.25,202.65,202.54,2.88271849]
[1756545750850,10.13271849,202.65,202.55,7.3]
[1756545751368,7.28389815,202.62,202.55,7.3]
[1756545752858,7.28389815,202.62,202.53,2.88271849]
[1756545752859,10.16661664,202.62,202.53,2.88271849]
[1756545759361,7.28389815,202.62,202.54,7.78]
[1756545760663,7.28389815,202.62,202.54,12.2232]
[1756545760863,7.28389815,202.62,202.55,7.78]
[1756545761670,0.03389815,202.62,202.6,7.78]
[1756545762057,0.03389815,202.62,202.59,2.88271849]
[1756545762268,0.03389815,202.62,202.6,12.2219]
[1756545762464,0.03389815,202.62,202.61,7.78]
[1756545762866,7.24,202.7,202.62,4.4413]
[1756545763067,7.24,202.7,202.63,10.66271849]
[1756545763471,7.28,202.73,202.64,7.78]
[1756545764176,7.28,202.73,202.66,0.0349761]
[1756545768671,7.28,202.73,202.67,7.78]